[Event "2nd Serbia Open Masters 2022"]
[Site "Novi Sad"]
[Date "2022.06.28"]
[Round "1.43"]
[White "Arjun Kalyan"]
[Black "Holland, James P"]
[Result "1/2-1/2"]
[ECO "B72"]
[WhiteElo "2477"]
[BlackElo "2238"]
[Annotator "TA"]
[PlyCount "151"]
[EventDate "2022.06.28"]
[EventType "swiss"]
[EventCountry "SRB"]
[SourceTitle "playchess.com"]
[Source "ChessBase"]
[SourceQuality "1"]
[TimeControl "40/5400+30:900+30"]

{[%evp 11,151,56,48,40,59,54,42,56,49,34,19,19,39,24,45,43,39,0,23,-2,33,46,53,45,45,11,33,-18,33,29,27,13,27,23,66,63,76,30,37,10,58,11,49,47,58,61,67,0,6,0,2,6,4,0,0,0,0,-66,-77,-44,0,-6,0,0,0,-29,-55,-213,-202,-206,-185,-180,-178,-172,-163,-130,-76,-76,-76,-77,-95,-63,0,-18,0,-1,0,0,0,-99,0,-8,-8,-74,0,0,0,-61,0,-210,-212,-329,-322,-319,-329,-329,-300,-387,-357,-357,-357,-344,-344,-344,-344,-332,0,0,0,0,0,0,0,0,0,0,0,0,0,0,0,0,0,0,0,0,0,0,0,0,0,0]} 1. e4 {[%emt 0:00:03]} c5 {[%emt 0:00:06]} 2. Nf3 {[%emt 0:00:08]} d6 {[%emt 0:00:03]} 3. d4 {[%emt 0:00:06]} cxd4 {[%emt 0:00:05]} 4. Nxd4 {[%emt 0:00:04]} Nf6 {[%emt 0:00:04]} 5. Nc3 {[%emt 0:00:05]} g6 {[%emt 0:00:21]} 6. Be3 {[%emt 0:00:11]} a6 {[%emt 0:00:13]} 7. f3 {[%emt 0:00:47] B72: Sicilian Dragon: 6 Be3, lines with h3+Bc4 and sidelines.} h5 {[%emt 0:00:24]} 8. Qd2 {[%emt 0:04:02]} e5 {[%emt 0:00:24]} 9. Nb3 {[%emt 0:00:48] White is slightly better.} Be6 {[%emt 0:00:10]} 10. Nd5 {[%emt 0:07:15]} Bxd5 {[%emt 0:04:48]} 11. exd5 {[%emt 0:00:20]} Nbd7 {[%emt 0:01:01]} 12. O-O-O {[%emt 0:00:08]} Qc7 {[%emt 0:04:05]} 13. Kb1 {[%emt 0:01:56]} Bg7 {[%emt 0:04:45]} 14. c4 {[%emt 0:05:21]} O-O {[%emt 0:04:58]} 15. h3 {[%emt 0:05:03]} Rfc8 {[%emt 0:27:25]} 16. g4 {[%emt 0:04:14]} a5 {[%emt 0:11:22] [#]} 17. g5 $146 {[%emt 0:06:20]} ({Predecessor:} 17. Rc1 a4 18. Na1 a3 19. b3 Nc5 20. Rg1 hxg4 21. hxg4 e4 22. f4 Nfd7 23. Rh1 {1-0 (35) Mihajlov,S (2387)-Dominguez Perez,L (2763) chess24.com INT 2020}) 17... Ne8 {[%emt 0:00:58]} 18. a3 {[%emt 0:07:50]} a4 {[%emt 0:07:54]} 19. Na1 {[%emt 0:01:14]} (19. Nc1 $14) 19... Qa5 {[%emt 0:00:12]} (19... Qd8 $11) 20. Qxa5 $14 {[%emt 0:15:49]} Rxa5 {[%emt 0:00:04]} 21. h4 {[%emt 0:00:04]} Nc5 {[%emt 0:01:22]} 22. Bh3 {[%emt 0:03:21]} Rb8 {[%emt 0:00:27]} 23. Nc2 {[%emt 0:07:17]} Bf8 {[%emt 0:12:02]} 24. Nb4 {[%emt 0:00:45] White is more active.} (24. Rhe1 $16) 24... Ng7 $11 {[%emt 0:00:16]} 25. f4 {[%emt 0:03:04]} e4 {[%emt 0:00:52]} (25... exf4 $11 26. Bxf4 Nb3) 26. Nc2 {[%emt 0:06:13]} (26. Rhg1 $14 {should be considered.}) 26... Nf5 {[%emt 0:03:13]} 27. Bxf5 {[%emt 0:00:05]} gxf5 {[%emt 0:00:02]} 28. Nd4 {[%emt 0:00:19]} Nd3 {[%emt 0:00:04]} 29. Nxf5 {[%emt 0:01:18]} ({White should try} 29. Rd2 $14) 29... b5 $1 {[%emt 0:00:25]} 30. Bd2 {[%emt 0:10:11]} Ra6 {[%emt 0:00:40][%cal Ba5a6,Ba6b6,Bb6b5,Bb5d5,Bd5c5][%mdl 32]} 31. Bc3 {[%emt 0:02:09] Inhibits Bg7. Threatens to win with Rdg1.} bxc4 {[%emt 0:00:42]} 32. Rd2 {[%emt 0:03:09]} Rab6 {[%emt 0:04:50]} 33. Rf1 {[%emt 0:04:17]} Rb5 {[%emt 0:03:10]} 34. Nd4 {[%emt 0:01:57]} (34. Rg2 $11) 34... Rxd5 $15 {[%emt 0:00:20] Hoping for ...Bg7.} 35. f5 {[%emt 0:00:40]} Rc5 {[%emt 0:02:12]} 36. Rg2 {[%emt 0:01:06]} Ne5 {[%emt 0:04:34]} 37. g6 {[%emt 0:00:42]} Ng4 $36 {[%emt 0:00:22][%mdl 2048] And now ...Ne3 would win. Black has good play.} 38. gxf7+ {[%emt 0:00:15]} Kxf7 {[%emt 0:00:05]} 39. Ne6 $2 {[%emt 0:00:11]} (39. Re2 $1 $15) 39... Ne3 $19 {[%emt 0:01:43]} 40. Nxc5 {[%emt 0:00:00]} dxc5 {[%emt 0:00:00]} ({Don't take} 40... Nxg2 41. Nxe4 Ke7 42. Rd1 $16) 41. Rfg1 {[%emt 0:02:51] Black must now prevent Rg5.} ({Wrong is} 41. Be5 $2 Re8 42. Rgf2 Rxe5 $19) 41... Nxg2 {[%emt 0:01:10]} 42. Rxg2 {[%emt 0:00:01][%mdl 4096] Endgame KRB-KRB} e3 {[%emt 0:05:22]} 43. Kc2 {[%emt 0:00:51] [#]} Re8 {[%emt 0:01:07]} (43... Rd8 $142 $1 {[%cal Od8d4] aiming for ...Rd4!} 44. Rg6 Rd6) 44. Kd1 $17 {[%emt 0:01:16]} Re4 {[%emt 0:00:32]} 45. Ke2 {[%emt 0:00:53]} Rxh4 {[%emt 0:01:11]} 46. Rg6 {[%emt 0:06:02] Against Bh6} Re4 {[%emt 0:02:04]} (46... Rg4 $1 $15 47. Rxg4 hxg4 48. Kxe3 Bd6) 47. Rf6+ {[%emt 0:02:56]} Kg8 {[%emt 0:01:50]} 48. Rg6+ {[%emt 0:00:02]} Kf7 {[%emt 0:00:10]} 49. Rg5 {[%emt 0:01:28]} Rh4 {[%emt 0:02:57]} (49... h4 $11) 50. Rg6 {[%emt 0:00:43] [#]} Re4 {[%emt 0:00:10]} (50... Rg4 $1 $17 {[%cal Rg4g6]} 51. Rxg4 hxg4 52. Kxe3 Bh6+ 53. Ke4 Bc1) 51. Kf3 {[%emt 0:00:40]} Re7 {[%emt 0:03:01]} 52. Rf6+ {[%emt 0:01:25]} (52. Ke2 $1 $11 {remains equal.}) 52... Kg8 {[%emt 0:00:10]} (52... Ke8 $17 {...Bg7 is the strong threat.} 53. Ra6 e2) 53. Rg6+ $11 {[%emt 0:00:21]} Kf7 {[%emt 0:00:08]} (53... Kh7 $11) 54. Rf6+ $15 {[%emt 0:01:28]} Kg8 {[%emt 0:00:05]} ({Black should play} 54... Ke8 $15 55. Ra6 e2) 55. Ra6 $2 {[%emt 0:01:30]} (55. Rg6+ $11 {and White has nothing to worry.} Kf7) 55... e2 $19 {[%emt 0:00:54]} 56. Kf2 {[%emt 0:00:08]} (56. Be1 $142 Bg7 57. f6) 56... h4 {[%emt 0:02:38][%cal Bh5h4,Bh4h3][%mdl 32]} 57. Rg6+ {[%emt 0:01:09]} Kf7 {[%emt 0:00:54]} 58. Rg4 {[%emt 0:00:34]} h3 {[%emt 0:00:44]} 59. f6 {[%emt 0:01:03]} Re6 {[%emt 0:00:38]} 60. Rh4 {[%emt 0:00:26]} e1=B+ {[%emt 0:01:01]} 61. Bxe1 {[%emt 0:00:04]} Rxf6+ {[%emt 0:00:04]} 62. Kg3 {[%emt 0:00:22]} Re6 {[%emt 0:00:28]} 63. Bc3 {[%emt 0:01:12]} Bg7 $2 {[%emt 0:01:48]} (63... Re3+ $19 64. Kf4 Rd3) 64. Rf4+ $11 {[%emt 0:00:28] The position is equal.} Bf6 {[%emt 0:00:39]} 65. Kxh3 {[%emt 0:00:05]} Ke7 {[%emt 0:00:16] Strongly threatening ...Bxc3.} 66. Rxc4 {[%emt 0:01:02]} Re3+ {[%emt 0:00:26]} 67. Kg4 {[%emt 0:00:21]} Bxc3 {[%emt 0:00:04]} 68. bxc3 {[%emt 0:00:21] KR-KR} Kd6 {[%emt 0:00:13]} 69. Rxa4 {[%emt 0:00:56]} Rxc3 {[%emt 0:00:05]} 70. Ra8 {[%emt 0:00:08]} Rc1 {[%emt 0:00:10]} 71. Kf3 {[%emt 0:00:06]} Re1 {[%emt 0:00:10]} 72. a4 {[%emt 0:00:05]} Kc6 {[%emt 0:00:36]} 73. Rc8+ {[%emt 0:00:04]} Kb6 {[%emt 0:00:07]} 74. Rb8+ {[%emt 0:00:03]} Ka5 {[%emt 0:00:05]} 75. Rb5+ {[%emt 0:00:02]} Kxa4 {[%emt 0:00:04]} 76. Rxc5 {[%emt 0:00:02] Whites escaped into a draw.  Weighted Error Value: White=0.26 (precise) /Black=0.14 (very precise)} 1/2-1/2

[Event "2nd Serbia Open Masters 2022"]
[Site "Novi Sad"]
[Date "2022.06.28"]
[Round "1.44"]
[White "Pham, Khoi"]
[Black "Bronstein, Or"]
[Result "0-1"]
[ECO "B99"]
[WhiteElo "2291"]
[BlackElo "2492"]
[Annotator "TA"]
[PlyCount "195"]
[EventDate "2022.06.28"]
[EventType "swiss"]
[EventCountry "SRB"]
[SourceTitle "playchess.com"]
[Source "ChessBase"]
[SourceQuality "1"]
[TimeControl "40/5400+30:900+30"]

{[%evp 21,195,41,57,-24,-5,-108,-100,-160,-172,-165,-160,-165,-167,-174,-164,-147,-83,-87,-80,-87,-97,-92,-83,-92,-102,-99,-83,-83,-89,-87,-80,-95,-85,-120,-104,-105,-19,-19,-18,-64,-44,-46,-15,-13,-13,-14,0,0,49,-7,-4,-13,-12,-17,-18,-20,-21,-159,-159,-156,-154,-156,-156,-159,-123,-109,-123,-185,-64,-75,-68,-67,-76,-266,-266,-266,-266,-266,-266,-266,-266,-266,-266,-29962,-29964,-29963,-29965,-29963,-29965,-29964,-29966,-29966,-170,-170,-170,-170,-8,-8,0,0,0,0,0,0,0,-8,-8,-8,-8,-8,-8,-8,-8,-8,-8,-8,-8,-8,-8,-8,-8,-8,-8,-8,-8,-8,-8,-8,-8,-8,0,-8,-8,-8,0,-8,-8,-8,-8,-8,-8,-8,-8,-8,-8,-8,-8,-8,0,-8,-8,-8,-8,-8,-8,-8,-8,-29970,-29971,-29971,-29972,-29973,-29974,-29970,-29975,-29973,-29976,-29949,-29960,-29957,0,-29973,-29977,-29979,-29980,-29980]} 1. e4 {[%emt 0:00:03]} c5 {[%emt 0:00:12]} 2. Nf3 {[%emt 0:00:06]} d6 {[%emt 0:00:05]} 3. d4 {[%emt 0:00:11]} cxd4 {[%emt 0:00:11]} 4. Nxd4 {[%emt 0:00:06]} Nf6 {[%emt 0:00:05]} 5. Nc3 {[%emt 0:00:09]} a6 {[%emt 0:00:45]} 6. Bg5 {[%emt 0:00:29]} e6 {[%emt 1:32:12]} 7. f4 {[%emt 0:00:12]} Be7 {[%emt 0:00:00]} 8. Qf3 {[%emt 0:00:09]} h6 {[%emt 0:00:00]} 9. Bh4 {[%emt 0:01:00]} Qc7 {[%emt 0:00:00]} 10. O-O-O {[%emt 0:00:48]} Nbd7 {[%emt 0:00:00]} 11. Be2 {[%emt 0:01:17]} b5 {[%emt 0:00:00]} (11... Nxe4 $2 12. Nxe4 (12. Nxe6 fxe6 13. Nxe4 d5 $16) 12... Bxh4 13. Nxe6 $1 {[%mdl 512]} fxe6 14. Qh5+ Kf8 15. Nxd6 $18 (15. Qxh4 d5 $16)) 12. e5 {[%emt 0:25:17] B99: Sicilian Najdorf: 6 Bg5 e6 7 f4 Be7 8 Qf3 Qc7 9 0-0-0 Nbd7.} (12. Bxf6 $14 Nxf6 13. e5) 12... Bb7 $11 {[%emt 0:00:00]} 13. Qg3 {[%emt 0:06:08]} (13. exf6 $11 Bxf3 14. Bxf3) 13... dxe5 $17 {[%emt 0:00:00]} 14. Nxe6 {[%emt 0:01:34]} fxe6 {[%emt 0:00:00]} 15. Qxg7 {[%emt 0:00:42]} Rh7 {[%emt 0:00:00]} 16. Bh5+ {[%emt 0:03:38]} Kd8 {[%emt 0:00:00]} 17. Qg6 {[%emt 0:02:30]} Kc8 {[%emt 0:00:00] [#]} 18. Bg4 $146 {[%emt 0:21:08] [#]} ({Predecessor:} 18. Rxd7 Nxd7 19. Qxh7 Bxh4 20. Qg8+ Qd8 21. Qxe6 Qf6 22. Qg8+ Qf8 23. Qe6 Qxf4+ 24. Kb1 {0-1 (44) Sedlak,N (2490)-Ilincic,Z (2530) Budva 2002}) 18... Nf8 {[%emt 0:00:00]} (18... exf4 $2 19. Bxe6 Kb8 20. Bxd7 $18) (18... Nxg4 $142 $1 19. Qxh7 Bxh4 20. Qg8+ Bd8 21. Qxg4 b4) 19. Bxe6+ {[%emt 0:00:53]} Nxe6 {[%emt 0:00:00]} 20. Bxf6 {[%emt 0:00:09]} Bxf6 {[%emt 0:00:00]} 21. Qxf6 {[%emt 0:00:45]} Qf7 {[%emt 0:00:00]} 22. fxe5 {[%emt 0:01:42]} Qxf6 {[%emt 0:00:00]} 23. exf6 {[%emt 0:00:04]} Kc7 {[%emt 0:00:00]} 24. Nd5+ {[%emt 0:09:51]} Bxd5 {[%emt 0:00:00]} 25. Rxd5 {[%emt 0:00:05]} Rf7 {[%emt 0:00:00]} 26. Rf1 {[%emt 0:01:38]} Rg8 {[%emt 0:00:00]} 27. Re5 {[%emt 0:02:39]} Kd6 {[%emt 0:10:30]} 28. Re3 {[%emt 0:04:45] And now Rd1+ would win.} Rg5 {[%emt 0:00:00]} (28... Nc7 $1 $17 29. g3 Rgf8) 29. h4 $1 $11 {[%emt 0:01:28]} Re5 {[%emt 0:00:00]} 30. Rd3+ {[%emt 0:03:20]} (30. Ra3 $1 $11) 30... Kc6 {[%emt 0:00:00]} 31. g4 {[%emt 0:00:34]} Re4 {[%emt 0:00:00]} 32. Rg3 {[%emt 0:01:09]} Nf4 {[%emt 0:00:00] Threatens to win with ...Ne2+.} 33. Ra3 {[%emt 0:00:36]} Kb6 {[%emt 0:00:00]} 34. g5 {[%emt 0:00:46]} h5 {[%emt 0:00:07]} (34... Nh5 $11 {is more appropriate.}) 35. Raf3 {[%emt 0:03:10]} (35. Rd1 $1 $14) 35... Ng6 {[%emt 0:00:01]} 36. Rh1 {[%emt 0:00:20]} Kc5 {[%emt 0:03:20]} (36... Nxh4 37. Rxh4 (37. Rfh3 Ng6 $15) 37... Rxh4 38. g6 $16) 37. Rd3 {[%emt 0:01:08]} Rg4 {[%emt 0:00:44]} 38. Rd8 {[%emt 0:01:23]} Nxh4 {[%emt 0:00:45]} 39. Rh8 {[%emt 0:00:20]} (39. Rh3 $11 {remains equal.}) 39... Nf3 $17 {[%emt 0:00:18] ...h4 is the strong threat.} 40. R8xh5 {[%emt 0:00:00] Threatening mate with g6+.} Nxg5 {[%emt 0:00:00] Black is more active.} (40... Rxg5 41. Rxg5+ Nxg5 42. Rh5 $16) 41. Rf1 {[%emt 0:06:27]} Kb6 {[%emt 0:02:27]} 42. b3 {[%emt 0:00:55]} Ne4 {[%emt 0:00:26]} 43. Re5 {[%emt 0:00:11]} Kc7 {[%emt 0:03:20]} (43... Rxf6 44. Rxf6+ Nxf6 45. Re6+ Kb7 46. Rxf6 $14) 44. a4 {[%emt 0:07:33]} (44. Re1 $17) 44... b4 {[%emt 0:02:18]} ({Inferior is} 44... Nxf6 45. Re6 $11) ({Not} 44... Rxf6 45. Re7+ Kd6 46. Rxf6+ Nxf6 47. Ra7 $17) (44... bxa4 $1 $19 {Strongly threatening ...a3.} 45. Re1 Nxf6) 45. Re6 {[%emt 0:03:59]} Nc5 $1 {[%emt 0:01:02]} 46. Re5 {[%emt 0:00:32]} ({Avoid the trap} 46. Re7+ $2 Rxe7 47. fxe7 Re4 $19) 46... Kd6 {[%emt 0:00:57]} 47. Rff5 {[%emt 0:00:13]} (47. Re8 $17) 47... Ne4 $19 {[%emt 0:02:46]} 48. Rd5+ {[%emt 0:01:12]} Kc6 {[%emt 0:00:09]} 49. Rd4 {[%emt 0:04:06]} Rxf6 {[%emt 0:00:57]} 50. Rc4+ {[%emt 0:00:40]} Kd6 {[%emt 0:00:42]} 51. Rd4+ {[%emt 0:00:19]} Ke6 {[%emt 0:00:25]} 52. Ra5 {[%emt 0:00:50]} (52. Rxf6+ $19 Nxf6 53. Rd8) 52... Rf1+ $1 {[%emt 0:01:35]} 53. Kb2 {[%emt 0:00:06] [#]} Rb1+ $3 {[%emt 0:03:04][%mdl 512]} 54. Kxb1 {[%emt 0:00:15] KRR-KRN} Nc3+ {[%emt 0:00:01][%mdl 64] Discovered Attack} 55. Kb2 {[%emt 0:00:12]} Rxd4 {[%emt 0:00:02]} 56. Rxa6+ {[%emt 0:00:24] KRN-KR} Kd5 $2 {[%emt 0:01:05]} (56... Ke7 {mates} 57. Rb6 Kd7 58. Rb8 Kc7 59. Rxb4 Rxb4 60. Kxc3 Rh4 61. b4 Kd6 62. Kb3 Ke5 63. Kc3 Kd5 64. Kb3 Ke5 65. Kc3 Kd5 66. Kb3 Rh3+ 67. c3 Rh4 68. a5 Rh3 69. a6 Kc6 70. Kc4 Rh4+ 71. Kd3 Kb6 72. b5 Kxb5 73. a7 Ra4 74. a8=B Rxa8 75. Kd4 Kc6 76. Ke4 Ra4+ 77. Kf3 Kd5 78. Ke3 Rh4 79. Kf2 Kc4 80. Kf3 Kxc3 81. Kg3 Rd4 82. Kg2 Kd2 83. Kf3 Rc4 84. Kf2 Rc3 85. Kg1 Ke3 86. Kf1 Kf3 87. Kg1 Rc1+ 88. Kh2 Rf1 89. Kh3 Rh1#) 57. Rb6 {[%emt 0:00:46]} Kc5 {[%emt 0:00:10]} 58. Rb8 {[%emt 0:00:04]} Rd1 $2 {[%emt 0:02:19]} ({Black should play} 58... Kc6 $1 $19 {[%cal Rc6c7] ( -> ...Kc7)} 59. Rc8+ Kb7 60. Rxc3 bxc3+ 61. Kxc3 Rd1) 59. Rc8+ $11 {[%emt 0:00:04]} Kb6 {[%emt 0:00:07][%csl Gc3][%cal Rd1b1]} 60. Rb8+ {[%emt 0:00:07]} Ka5 {[%emt 0:00:30][%csl Gc3][%cal Rd1b1]} 61. Ra8+ {[%emt 0:00:13]} Kb6 {[%emt 0:00:01][%csl Gc3][%cal Rd1b1]} 62. Rb8+ {[%emt 0:00:10]} Kc5 {[%emt 0:00:01][%csl Gc3][%cal Rd1b1]} 63. Rc8+ {[%emt 0:00:39]} Kd5 {[%emt 0:00:16][%csl Gc3][%cal Rd1b1]} 64. Rd8+ {[%emt 0:00:19]} Ke4 {[%emt 0:02:43][%csl Gc3][%cal Rd1b1]} 65. Rxd1 {[%emt 0:00:23]} Nxd1+ {[%emt 0:00:01] KN-K3P} 66. Kc1 {[%emt 0:00:11]} Nc3 {[%emt 0:00:26]} 67. Kd2 {[%emt 0:01:43]} Kd4 {[%emt 0:00:01]} 68. Kc1 {[%emt 0:00:57]} Ne4 {[%emt 0:01:15]} 69. Kb2 {[%emt 0:00:19]} Nc5 {[%emt 0:00:13]} 70. a5 {[%emt 0:01:47]} Na6 {[%emt 0:00:00]} 71. Kc1 {[%emt 0:00:23]} Ke3 {[%emt 0:00:45]} 72. Kd1 {[%emt 0:00:43]} Nc7 {[%emt 0:00:17]} 73. Ke1 {[%emt 0:00:04]} Ke4 {[%emt 0:00:56]} (73... Nb5 $5) 74. Ke2 {[%emt 0:00:24]} Kd4 {[%emt 0:00:14]} (74... Nb5 $5 75. a6 Kd5 $11) 75. Kd2 {[%emt 0:00:05]} Na6 {[%emt 0:00:07]} (75... Nb5 $5) 76. Kd1 {[%emt 0:00:38]} Kc5 {[%emt 0:00:07]} (76... Nc5 $5) 77. Kd2 {[%emt 0:00:05]} Kd4 {[%emt 0:00:24]} 78. Kd1 {[%emt 0:00:03]} Nb8 {[%emt 0:01:02]} (78... Nc5 $5 79. Ke2 Ke4 $11) 79. Kd2 {[%emt 0:00:05]} Nc6 {[%emt 0:00:40]} 80. a6 {[%emt 0:00:07]} Na7 {[%emt 0:00:01]} 81. Kd1 {[%emt 0:00:24]} Kc3 {[%emt 0:01:12]} 82. Kc1 {[%emt 0:00:05]} Nb5 {[%emt 0:00:20]} 83. Kd1 {[%emt 0:00:26]} Kd4 {[%emt 0:00:32]} (83... Nc7 $5 84. a7 Kd4 $11) 84. Kd2 {[%emt 0:00:05]} Na7 {[%emt 0:00:34]} 85. Kd1 {[%emt 0:00:09]} Ke3 {[%emt 0:00:44]} 86. Ke1 {[%emt 0:00:10]} Nb5 {[%emt 0:00:11]} (86... Nc6 $5) 87. Kd1 {[%emt 0:00:08]} Ke4 {[%emt 0:01:38]} 88. Kd2 {[%emt 0:00:29]} Kd4 {[%emt 0:00:01]} 89. Kd1 $2 {[%emt 0:00:32][%mdl 8192]} (89. Ke2 $11) 89... Kc5 $1 {[%emt 0:00:25]} 90. Kd2 {[%emt 0:01:44]} Kb6 {[%emt 0:00:01]} 91. Kd3 {[%emt 0:01:21]} Kxa6 {[%emt 0:00:40] KN-KPP} 92. Kc4 {[%emt 0:00:55]} Ka5 {[%emt 0:00:01]} 93. Kd3 {[%emt 0:00:13]} Nc3 {[%emt 0:00:02]} 94. Kc4 {[%emt 0:00:08] [#]} Na2 $1 {[%emt 0:00:06]} 95. Kc5 {[%emt 0:00:08]} Nc3 {[%emt 0:00:36]} 96. Kc4 $1 {[%emt 0:00:04] [#]} Nb1 $1 {[%emt 0:00:20]} 97. Kc5 {[%emt 0:00:30]} Na3 {[%emt 0:00:13]} 98. Kd4 {[%emt 0:06:34] Weighted Error Value: White=0.41/Black=0.33} 0-1